bitfinex-derivatives/quotes_BTCF0:USTF0_20210706
["timestamp","ask_amount","ask_price","bid_price","bid_amount"]
[1625536681323,0.86268988,33771.0,33770.0,0.00350841]
[1625536682129,1.53726677,33771.0,33770.0,0.00350841]
[1625536686043,2.54849959,33771.0,33770.0,0.00350841]
[1625536687847,1.53726677,33771.0,33770.0,0.00350841]
[1625536688148,2.54843364,33771.0,33770.0,0.00350841]
[1625536688397,2.77157364,33771.0,33770.0,0.00350841]
[1625536688548,1.76040677,33771.0,33770.0,0.00350841]
[1625536688897,2.77157793,33771.0,33770.0,0.00350841]
[1625536689199,1.76040677,33771.0,33770.0,0.00350841]
[1625536689899,1.53726677,33771.0,33770.0,0.00350841]
[1625536690401,2.5487497,33771.0,33770.0,0.00350841]
[1625536693562,2.4917497,33771.0,33770.0,0.00350841]
[1625536693764,2.5487497,33771.0,33770.0,0.00350841]
[1625536694213,2.7984897,33771.0,33770.0,0.00350841]
[1625536694516,3.97924814,33771.0,33770.0,0.00350841]
[1625536697573,5.32941272,33771.0,33770.0,0.00350841]
[1625536702834,6.85039278,33771.0,33770.0,0.00350841]
[1625536705642,6.86573756,33771.0,33770.0,0.00350841]
[1625536706545,6.80873756,33771.0,33770.0,0.00350841]
[1625536706745,6.86573756,33771.0,33770.0,0.00350841]
[1625536706894,6.80873756,33771.0,33770.0,0.00350841]
[1625536707247,6.82408228,33771.0,33770.0,0.00350841]
[1625536707598,6.88108228,33771.0,33770.0,0.00350841]
[1625536710557,6.88108228,33771.0,33769.0,0.00350907]
[1625536710808,6.88108228,33771.0,33770.0,0.00350912]
[1625536711107,6.88108228,33771.0,33766.0,0.26263038]
[1625536711108,8.57197157,33771.0,33767.0,0.00350914]
[1625536711357,8.57197157,33771.0,33770.0,0.00350917]
[1625536711458,2.41609423,33771.0,33770.0,0.00350917]
[1625536711557,2.32789423,33771.0,33770.0,0.00350917]
[1625536711657,2.32789423,33771.0,33766.0,0.00350917]
[1625536711757,8.5842629,33771.0,33766.0,0.00350917]
[1625536711858,8.5842629,33771.0,33770.0,0.00350917]
[1625536712109,8.56891818,33771.0,33767.0,0.00350919]
[1625536712210,0.62166022,33771.0,33767.0,0.00350919]
[1625536712460,0.63702145,33771.0,33765.0,0.32811872]
[1625536712661,6.2552971,33768.0,33766.0,0.00350918]
[1625536712762,0.057,33767.0,33766.0,0.00350918]
[1625536712962,0.35657544,33767.0,33766.0,0.00350918]
[1625536713162,6.61189743,33767.0,33766.0,0.00350918]
[1625536714515,6.61189743,33767.0,33765.0,0.00350929]
[1625536714917,6.25249884,33766.0,33765.0,0.00350929]
[1625536715019,6.55007428,33766.0,33765.0,0.00350929]
[1625536715117,6.60907428,33766.0,33765.0,0.00350929]
[1625536715318,6.60907428,33766.0,33764.0,0.00350922]
[1625536715720,6.30584493,33765.0,33764.0,0.00350922]
[1625536715820,6.36484493,33765.0,33764.0,0.00350922]
[1625536715920,6.42384493,33765.0,33764.0,0.00350922]
[1625536716121,6.42384493,33765.0,33762.0,0.00350946]
[1625536716370,6.42384493,33765.0,33761.0,0.00350965]
[1625536716571,0.057,33762.0,33761.0,0.00350965]
[1625536716772,0.116,33762.0,33761.0,0.00350965]
[1625536716971,3.90152464,33762.0,33761.0,0.00350965]
[1625536717074,5.08311812,33762.0,33761.0,0.00350965]
[1625536719175,5.08311812,33762.0,33760.0,0.00350991]
[1625536719778,3.71044999,33761.0,33760.0,0.00350991]
[1625536719877,4.77937557,33761.0,33760.0,0.00350991]
[1625536719977,4.83837557,33761.0,33760.0,0.00350991]
[1625536720278,4.83837557,33761.0,33759.0,0.00350986]
[1625536720578,4.72125034,33760.0,33758.0,0.61202983]
[1625536720678,4.78025034,33760.0,33758.0,0.61202983]
[1625536720778,4.78025034,33760.0,33759.0,0.00350984]
[1625536720879,1.46485642,33760.0,33759.0,0.00350984]
[1625536720978,1.70543186,33760.0,33759.0,0.00350984]
[1625536721333,4.57179938,33760.0,33759.0,0.00350984]
[1625536721429,5.07770827,33760.0,33759.0,0.00350984]
[1625536721529,5.13670827,33760.0,33759.0,0.00350984]
[1625536722180,5.13670827,33760.0,33758.0,0.00350999]
[1625536722380,4.71805101,33759.0,33757.0,0.08743144]
[1625536722480,4.77705101,33759.0,33757.0,0.08743144]
[1625536722682,4.77705101,33759.0,33758.0,0.00350996]
[1625536722783,1.40694237,33759.0,33758.0,0.00350996]
[1625536723182,4.77728753,33759.0,33758.0,0.00350996]
[1625536724187,3.42934516,33759.0,33758.0,0.00350996]
[1625536726195,3.48634516,33759.0,33758.0,0.00350996]
[1625536727097,3.48634516,33759.0,33757.0,0.00351]
[1625536727450,3.48634516,33759.0,33756.0,0.85240914]
[1625536727547,3.42750587,33758.0,33756.0,0.50268339]
[1625536727897,2.18948945,33757.0,33756.0,0.50268339]
[1625536728047,2.24848945,33757.0,33756.0,0.50268339]
[1625536728400,2.24848945,33757.0,33756.0,0.50619339]
[1625536728603,2.24848945,33757.0,33756.0,0.33144101]
[1625536729105,2.48906489,33757.0,33756.0,0.33144101]
[1625536729854,2.48906489,33757.0,33756.0,0.5061163]
[1625536730105,2.48906489,33757.0,33756.0,0.24408544]
[1625536730557,2.48906489,33757.0,33756.0,0.33140913]
[1625536731662,2.48906489,33757.0,33756.0,0.50605707]
[1625536732715,2.43006489,33757.0,33756.0,0.50605707]
[1625536733163,0.74589405,33757.0,33756.0,1.5255366]
[1625536733265,0.74589405,33757.0,33756.0,1.7765366]
[1625536733365,0.83072289,33757.0,33756.0,2.82430895]
[1625536733717,0.49361611,33757.0,33756.0,2.82430895]
[1625536734266,0.83071436,33757.0,33756.0,2.82430895]
[1625536735318,0.83071436,33757.0,33756.0,2.88330895]
[1625536735418,0.49361611,33757.0,33756.0,2.88330895]
[1625536735974,0.24057544,33757.0,33756.0,2.88330895]
[1625536736275,0.24057544,33757.0,33756.0,2.82430895]
[1625536736926,0.83093055,33757.0,33756.0,2.82430895]
[1625536737324,0.32500819,33757.0,33756.0,2.82430895]
[1625536737778,0.49370817,33757.0,33756.0,2.82430895]
[1625536738229,0.8309496,33757.0,33756.0,2.82430895]
[1625536739587,0.74651685,33757.0,33756.0,2.82430895]
[1625536740883,1.08456452,33757.0,33756.0,2.82430895]
[1625536741685,0.74686118,33757.0,33756.0,2.82430895]
[1625536741939,0.73026118,33757.0,33756.0,2.82430895]
[1625536742042,0.73026118,33757.0,33756.0,2.88330895]
[1625536742343,0.47765023,33757.0,33756.0,4.10630291]
[1625536743243,0.30860592,33757.0,33756.0,4.10630291]
[1625536743895,0.22397544,33757.0,33756.0,4.10630291]
[1625536745098,0.5917754,33758.0,33756.0,4.10630291]
[1625536745198,0.08465545,33758.0,33756.0,5.50418469]
[1625536745298,0.08465545,33758.0,33757.0,0.2522778]
[1625536745399,0.08465545,33758.0,33757.0,0.3112778]
[1625536745503,0.08465545,33758.0,33757.0,0.37378697]
[1625536745598,0.08465545,33758.0,33757.0,0.36208461]
[1625536745700,0.25415577,33762.0,33757.0,5.26594181]
[1625536745799,0.25415577,33762.0,33757.0,5.27471452]
[1625536745899,0.08477499,33762.0,33761.0,3.49455191]
[1625536746001,0.08477499,33762.0,33761.0,3.55355191]
[1625536746099,0.08477499,33762.0,33761.0,3.61255191]
[1625536746200,0.25422303,33763.0,33761.0,5.01038627]
[1625536746300,0.25422303,33763.0,33761.0,5.01389529]
[1625536746551,0.25422303,33763.0,33762.0,0.00350904]
[1625536746651,0.59290637,33763.0,33762.0,3.55709258]
[1625536747002,0.09250637,33763.0,33762.0,3.55709258]
[1625536747303,0.09250637,33763.0,33762.0,4.03824346]
[1625536747452,0.67731069,33765.0,33762.0,4.03824346]
[1625536747453,0.50810173,33765.0,33762.0,5.43607953]
[1625536747901,0.50810173,33765.0,33763.0,0.24154887]
[1625536748002,0.50810173,33765.0,33764.0,2.27146952]
[1625536748102,0.50810173,33765.0,33764.0,2.33046952]
[1625536748254,0.50810173,33765.0,33764.0,3.55365836]
[1625536748454,0.50810173,33765.0,33764.0,3.55716717]
[1625536748555,0.50833246,33766.0,33764.0,3.55716717]
[1625536748857,0.50833246,33766.0,33765.0,2.27157017]
[1625536748956,0.50833246,33766.0,33765.0,2.33407892]
[1625536749206,1.42666159,33767.0,33765.0,3.55721622]
[1625536749306,1.42666159,33767.0,33766.0,0.24057544]
[1625536749407,1.42666159,33767.0,33766.0,0.29957544]
[1625536749506,1.42666159,33767.0,33766.0,0.30308429]
[1625536749608,1.42666159,33767.0,33766.0,2.57450379]
[1625536749757,1.42666159,33767.0,33766.0,2.51550379]
[1625536749860,2.44277523,33767.0,33766.0,1.46715633]
[1625536749958,2.44277523,33767.0,33766.0,1.52615633]
[1625536750208,2.44277523,33767.0,33766.0,0.82725802]
[1625536750609,3.62791241,33767.0,33766.0,0.82725802]
[1625536751160,2.44277523,33767.0,33766.0,0.82725802]
[1625536751559,2.44277523,33767.0,33766.0,0.76825802]
[1625536751663,2.44277523,33767.0,33766.0,0.82725802]
[1625536751760,2.44277523,33767.0,33766.0,0.76825802]
[1625536751861,2.44277523,33767.0,33766.0,0.82725802]
[1625536751961,2.44277523,33767.0,33766.0,0.76825802]
[1625536752061,3.62801585,33767.0,33766.0,0.76825802]
[1625536752161,3.62801585,33767.0,33766.0,0.82725802]
[1625536752762,2.44277523,33767.0,33766.0,1.52628703]
[1625536752913,2.44277523,33767.0,33766.0,1.58528703]
[1625536753767,0.24057544,33767.0,33766.0,3.85660353]
[1625536753968,0.5085244,33768.0,33766.0,3.85660353]
[1625536754067,1.18647263,33768.0,33766.0,3.85660353]
[1625536754368,0.67794823,33768.0,33767.0,2.27498383]
[1625536754469,0.67794823,33768.0,33767.0,2.33398383]
[1625536754669,2.20299301,33768.0,33767.0,2.33398383]
[1625536755220,2.20299301,33768.0,33767.0,1.28561063]
[1625536756976,2.20299301,33768.0,33767.0,0.58669516]
[1625536758078,0.50840473,33768.0,33767.0,2.33374245]
[1625536758178,0.50840473,33768.0,33767.0,2.67222245]
[1625536758578,1.18627142,33768.0,33767.0,2.67222245]
[1625536759482,1.18627142,33768.0,33767.0,1.62399408]
[1625536759882,2.20263587,33768.0,33767.0,1.62399408]
[1625536760434,1.18627142,33768.0,33767.0,1.62399408]
[1625536760783,1.18627142,33768.0,33767.0,2.67216461]
[1625536761085,0.50840473,33768.0,33767.0,2.67216461]
[1625536761988,1.18610588,33768.0,33767.0,2.67216461]
[1625536762545,1.18610588,33768.0,33767.0,1.62399408]
[1625536762644,1.18610588,33768.0,33767.0,1.28551408]
[1625536763395,1.18610588,33768.0,33767.0,2.33344837]
[1625536763494,1.18610588,33768.0,33767.0,2.64193837]
[1625536763645,0.50844239,33769.0,33767.0,2.64193837]
[1625536763894,0.50844239,33769.0,33768.0,0.00350874]
[1625536763996,0.50844239,33769.0,33768.0,2.27381747]
[1625536764095,0.50844239,33769.0,33768.0,2.33281747]
[1625536765399,0.50844239,33769.0,33768.0,2.57339291]
[1625536765749,1.42694169,33770.0,33768.0,2.57339291]
[1625536765999,1.42694169,33770.0,33769.0,0.00350863]
[1625536766101,0.74907498,33770.0,33769.0,2.33227442]
[1625536766501,0.24057544,33770.0,33769.0,2.33227442]
[1625536767051,0.7489845,33770.0,33769.0,2.33227442]
[1625536767452,0.7489845,33770.0,33769.0,2.57284986]
[1625536767908,0.7489845,33770.0,33769.0,1.52526565]
[1625536768807,0.7489845,33770.0,33769.0,1.46626565]
[1625536768907,0.7489845,33770.0,33769.0,1.52526565]
[1625536769306,0.24057544,33770.0,33769.0,1.52526565]
[1625536769557,0.91799403,33770.0,33769.0,0.82687618]
[1625536769859,0.24057544,33770.0,33769.0,1.5250396]
[1625536771511,0.74893091,33770.0,33769.0,1.5250396]
[1625536772112,0.24057544,33770.0,33769.0,1.5250396]
[1625536772463,0.74892289,33770.0,33769.0,1.5250396]
[1625536773567,0.24057544,33770.0,33769.0,1.5250396]
[1625536775072,0.24057544,33770.0,33769.0,0.82687618]
[1625536775073,0.74876954,33770.0,33769.0,0.82687618]
[1625536775726,0.24057544,33770.0,33769.0,0.82687618]
[1625536776728,0.24057544,33770.0,33769.0,1.52470202]
[1625536777830,0.24057544,33770.0,33769.0,0.82687618]
[1625536778685,0.24057544,33770.0,33769.0,1.52467802]
[1625536781788,0.53685544,33770.0,33769.0,1.46567802]
[1625536781888,0.59585544,33770.0,33769.0,1.46567802]
[1625536782640,2.79638264,33770.0,33769.0,0.24408407]
[1625536782989,5.33334337,33770.0,33769.0,0.24408407]
[1625536783542,5.57391881,33770.0,33769.0,0.24408407]
[1625536785546,5.57391881,33770.0,33769.0,0.00350863]
[1625536785947,5.57391881,33770.0,33763.0,0.00350929]
[1625536786047,5.57391881,33770.0,33763.0,0.06250929]
[1625536786349,2.19897491,33764.0,33763.0,0.06250929]
[1625536786448,2.25597491,33764.0,33763.0,0.06250929]
[1625536786551,2.25597491,33764.0,33763.0,0.059]
[1625536786749,2.25597491,33764.0,33763.0,0.06250934]
[1625536787549,2.49655035,33764.0,33763.0,0.06250934]
[1625536787900,2.49655035,33764.0,33763.0,0.00350934]
[1625536788152,3.679975,33764.0,33763.0,0.00350934]
[1625536789854,5.03228815,33764.0,33763.0,0.00350934]
[1625536790807,5.09128815,33764.0,33763.0,0.00350934]
[1625536791613,5.33186359,33764.0,33763.0,0.00350934]
[1625536791711,6.85206406,33764.0,33763.0,0.00350934]
[1625536791809,6.85206406,33764.0,33762.0,0.24057544]
[1625536792362,6.30721831,33763.0,33762.0,0.24057544]
[1625536792461,6.64387831,33763.0,33762.0,0.24057544]
[1625536793613,6.88445375,33763.0,33756.0,0.76490166]
[1625536793713,6.88445375,33763.0,33756.0,0.82390166]
[1625536793814,6.88445375,33763.0,33756.0,0.76490166]
[1625536793913,6.88445375,33763.0,33757.0,0.00351025]
[1625536794013,6.97405375,33763.0,33757.0,0.00351025]
[1625536794214,7.03305375,33763.0,33757.0,0.00351025]
[1625536794316,1.35045518,33758.0,33757.0,0.00351025]
[1625536794415,1.40745518,33758.0,33757.0,0.00351025]
[1625536794515,1.46645518,33758.0,33756.0,0.24057544]
[1625536794615,2.64765346,33758.0,33756.0,0.24057544]
[1625536794717,4.84150022,33758.0,33756.0,0.24057544]
[1625536794864,4.90050022,33758.0,33756.0,0.24057544]
[1625536795065,4.78027724,33757.0,33756.0,0.24057544]
[1625536795165,4.89827724,33757.0,33756.0,0.24057544]
[1625536795365,4.83927724,33757.0,33756.0,0.24057544]
[1625536795619,5.07985268,33757.0,33756.0,0.24057544]
[1625536797768,5.07985268,33757.0,33752.0,0.24057544]
[1625536797869,5.13885268,33757.0,33750.0,1.02954842]
[1625536797970,5.63885268,33757.0,33750.0,1.02954842]
[1625536798072,5.13885268,33757.0,33750.0,1.02954842]
[1625536798270,5.13885268,33757.0,33749.0,0.17]
[1625536798271,0.057,33750.0,33749.0,0.17]
[1625536798473,0.116,33750.0,33749.0,0.17]
[1625536798670,1.63161514,33750.0,33749.0,0.229]
[1625536799624,2.11276602,33750.0,33749.0,0.229]
[1625536799823,1.10241205,33750.0,33749.0,0.229]
[1625536802875,1.10241205,33750.0,33749.0,0.17]
[1625536803126,1.16141205,33750.0,33749.0,0.17]
[1625536803328,2.11116814,33750.0,33749.0,0.17]
[1625536803679,2.35174358,33750.0,33749.0,0.17]
[1625536804685,1.34298749,33750.0,33749.0,0.17]
[1625536806884,1.40198749,33750.0,33749.0,0.17]
[1625536807135,1.34298749,33750.0,33749.0,0.17]
[1625536807238,2.35026343,33750.0,33749.0,0.17]
[1625536807536,1.34298749,33750.0,33749.0,0.17]
[1625536807787,1.40198749,33750.0,33749.0,0.17]
[1625536808188,2.40834697,33750.0,33749.0,0.17]
[1625536808287,2.34934697,33750.0,33749.0,0.17]
[1625536808539,1.34298749,33750.0,33749.0,0.17]
[1625536809390,0.83772632,33750.0,33749.0,0.17]
[1625536809489,0.89672632,33750.0,33749.0,0.17]
[1625536809691,2.40640518,33750.0,33749.0,0.17]
[1625536810445,4.91868632,33750.0,33749.0,0.17]
[1625536811893,4.91868632,33750.0,33734.0,0.76282042]
[1625536812143,4.91868632,33750.0,33734.0,0.82182042]
[1625536812243,0.50173122,33743.0,33734.0,0.29957544]
[1625536812346,0.057,33742.0,33734.0,0.29957544]
[1625536812443,0.116,33742.0,33734.0,0.29957544]
[1625536813144,0.116,33742.0,33735.0,0.00351155]
[1625536813245,0.116,33742.0,33735.0,0.06251155]
[1625536813646,0.116,33742.0,33736.0,0.00351162]
[1625536813746,0.48115088,33737.0,33736.0,0.00351162]
[1625536813850,0.53815088,33737.0,33736.0,0.00351162]
[1625536813947,0.53815088,33737.0,33734.0,0.24057544]
[1625536814051,0.53815088,33737.0,33734.0,0.29957544]
[1625536814504,0.53815088,33737.0,33735.0,0.00351158]
[1625536814602,0.53815088,33737.0,33735.0,0.06251158]
[1625536815002,0.53815088,33737.0,33735.0,0.059]
[1625536815204,0.53815088,33737.0,33736.0,0.00351162]
[1625536815802,0.53815088,33737.0,33735.0,0.00351165]
[1625536815902,0.53815088,33737.0,33735.0,0.06251165]
[1625536816002,0.53815088,33737.0,33736.0,0.0035115]
[1625536816557,0.53815088,33737.0,33735.0,0.00351152]
[1625536816656,0.53815088,33737.0,33735.0,0.06251152]
[1625536817058,0.53815088,33737.0,33736.0,0.00351152]
[1625536817257,0.53815088,33737.0,33736.0,0.06251152]
[1625536817708,0.53815088,33737.0,33736.0,0.00351152]
[1625536818209,0.53815088,33737.0,33735.0,0.00351164]
[1625536818310,0.53815088,33737.0,33735.0,0.06251164]
[1625536818411,0.53815088,33737.0,33736.0,0.00351161]
[1625536818911,0.53815088,33737.0,33735.0,0.00351161]
[1625536819112,0.53815088,33737.0,33735.0,0.06251161]
[1625536819362,0.53815088,33737.0,33735.0,0.00351161]
[1625536819462,0.53815088,33737.0,33736.0,0.00351169]
[1625536819563,0.59715088,33737.0,33736.0,0.00351169]
[1625536819663,0.53815088,33737.0,33736.0,0.00351169]
[1625536819764,0.59715088,33737.0,33736.0,0.00351169]
[1625536819864,0.59715088,33737.0,33732.0,0.00351176]
[1625536820064,0.59715088,33737.0,33736.0,0.00351183]
[1625536820363,0.59715088,33737.0,33733.0,0.00351187]
[1625536820614,0.59715088,33737.0,33732.0,0.00351187]
[1625536820866,0.59715088,33737.0,33734.0,0.00351187]
[1625536821114,0.59715088,33737.0,33732.0,0.00351182]
[1625536821766,0.24057544,33733.0,33732.0,0.00351182]
[1625536821864,0.29757544,33733.0,33732.0,0.00351182]
[1625536821967,0.29757544,33733.0,33732.0,0.06251182]
[1625536822521,0.52857544,33733.0,33732.0,0.06251182]
[1625536822720,0.52857544,33733.0,33732.0,0.00351182]
[1625536823321,0.58757544,33733.0,33732.0,0.00351182]
[1625536823722,0.64657544,33733.0,33732.0,0.00351182]
[1625536826878,0.58757544,33733.0,33732.0,0.00351182]
[1625536826978,0.35657544,33733.0,33732.0,0.00351182]
[1625536827080,0.35657544,33733.0,33732.0,0.20974182]
[1625536827179,0.29757544,33733.0,33732.0,0.20974182]
[1625536829084,0.24057544,33733.0,33732.0,0.20974182]
[1625536829487,0.24057544,33733.0,33732.0,0.26874182]
[1625536830588,0.24057544,33733.0,33732.0,0.32774182]
[1625536830691,0.24057544,33733.0,33732.0,0.26874182]
[1625536830791,0.24057544,33733.0,33732.0,0.32774182]
[1625536830941,0.24057544,33733.0,33732.0,0.26874182]
[1625536831642,0.24057544,33733.0,33732.0,0.20974182]
[1625536832344,0.24057544,33733.0,33732.0,0.26874182]
[1625536832800,0.24057544,33733.0,33732.0,0.32774182]
[1625536833099,0.24057544,33733.0,33732.0,0.26874182]
[1625536833198,0.24057544,33733.0,33732.0,0.20974182]
[1625536835304,0.24057544,33733.0,33732.0,0.26874182]
[1625536835405,0.24057544,33733.0,33732.0,0.20974182]
[1625536836104,0.24057544,33733.0,33732.0,0.32774182]
[1625536836205,0.24057544,33733.0,33732.0,0.26874182]
[1625536836410,0.24057544,33733.0,33732.0,0.32774182]
[1625536836510,0.24057544,33733.0,33732.0,0.20974182]
[1625536836710,0.24057544,33733.0,33732.0,0.26874182]
[1625536837613,0.24057544,33733.0,33732.0,0.20974182]
[1625536838467,0.24057544,33733.0,33732.0,0.26874182]
[1625536838565,0.24057544,33733.0,33732.0,0.20974182]
[1625536839615,0.24057544,33733.0,33732.0,0.26874182]
[1625536839816,0.24057544,33733.0,33732.0,0.20974182]
[1625536839967,0.24057544,33733.0,33732.0,0.26874182]
[1625536840068,0.24057544,33733.0,33732.0,0.20974182]
[1625536840168,0.24057544,33733.0,33732.0,0.26874182]
[1625536840474,0.24057544,33733.0,33732.0,0.20974182]
[1625536840570,0.24057544,33733.0,33732.0,0.26874182]
[1625536840671,0.24057544,33733.0,33732.0,0.20974182]
[1625536842825,0.24057544,33733.0,33732.0,0.26874182]
[1625536842925,0.24057544,33733.0,33732.0,0.20974182]
[1625536843825,0.24057544,33733.0,33732.0,0.26874182]
[1625536843925,0.24057544,33733.0,33732.0,0.20974182]
[1625536844626,0.24057544,33733.0,33732.0,0.26874182]
[1625536847835,0.24057544,33733.0,33732.0,0.85049827]
[1625536847935,0.24057544,33733.0,33732.0,1.09107371]
[1625536848035,0.24057544,33737.0,33732.0,1.09107371]
[1625536848136,0.24057544,33737.0,33732.0,1.0998533]
[1625536848437,0.24057544,33737.0,33733.0,0.0122911]
[1625536848538,0.24057544,33737.0,33733.0,0.1302911]
[1625536848636,0.24057544,33743.0,33736.0,1.56820167]
[1625536848840,0.24057544,33743.0,33736.0,1.68620167]
[1625536848940,0.24057544,33743.0,33739.0,0.5227137]
[1625536849040,0.24057544,33743.0,33739.0,0.7771237]
[1625536849141,0.24057544,33743.0,33739.0,0.8951237]
[1625536849238,0.24057544,33743.0,33740.0,0.00351139]
[1625536849341,0.34027577,33744.0,33740.0,0.58554103]
[1625536849442,0.34027577,33744.0,33740.0,0.64454103]
[1625536849540,1.01870287,33746.0,33740.0,0.64454103]
[1625536849643,0.66230287,33746.0,33740.0,0.64454103]
[1625536849742,0.66230287,33746.0,33741.0,0.00351085]
[1625536849940,1.02046495,33749.0,33745.0,0.72172632]
[1625536850041,1.02046495,33749.0,33745.0,0.83972632]
[1625536850340,0.24057544,33751.0,33746.0,1.45721795]
[1625536850441,0.24057544,33751.0,33746.0,1.51621795]
[1625536850544,0.24057544,33751.0,33746.0,1.57521795]
[1625536850792,0.24057544,33751.0,33747.0,0.00351032]
[1625536850891,0.24057544,33751.0,33747.0,1.28255472]
[1625536850990,0.24057544,33751.0,33747.0,1.34155472]
[1625536851091,0.24057544,33751.0,33748.0,0.00351032]
[1625536851192,0.24057544,33751.0,33748.0,0.06251032]
[1625536851642,0.24057544,33751.0,33749.0,0.00351038]
[1625536851742,0.24057544,33751.0,33749.0,0.06251038]
[1625536851993,0.24057544,33751.0,33750.0,0.24057544]
[1625536852097,0.24057544,33751.0,33750.0,0.29957544]
[1625536852195,0.24057544,33754.0,33750.0,0.30308578]
[1625536852394,0.24057544,33754.0,33750.0,0.36208578]
[1625536852694,1.19379948,33759.0,33751.0,0.00351021]
[1625536852795,1.19379948,33759.0,33751.0,0.12151021]
[1625536852895,1.3643179,33760.0,33751.0,0.12151021]
[1625536852896,1.19406076,33760.0,33751.0,0.12151021]
[1625536853195,1.19406076,33760.0,33752.0,0.00351019]
[1625536853299,1.19461528,33759.0,33752.0,0.06251019]
[1625536853396,1.19461528,33759.0,33752.0,0.12151019]
[1625536853799,1.19461528,33759.0,33753.0,0.00351016]
[1625536853898,1.19461528,33759.0,33753.0,0.42372016]
[1625536853998,1.19461528,33759.0,33758.0,0.48115088]
[1625536854099,1.19408066,33760.0,33758.0,0.48115088]
[1625536854400,1.19408066,33760.0,33754.0,0.2440854]
[1625536854401,1.19408066,33760.0,33754.0,0.00350996]
[1625536854502,1.19408066,33760.0,33754.0,0.118]
[1625536854600,1.19408066,33760.0,33754.0,0.059]
[1625536855954,1.19408066,33760.0,33759.0,0.48115088]
[1625536858109,0.68225648,33760.0,33759.0,0.48115088]
[1625536858460,0.68225648,33760.0,33759.0,0.54015088]
[1625536862022,0.68265912,33762.0,33759.0,0.54015088]
[1625536862322,0.68265912,33762.0,33759.0,0.59915088]
[1625536862729,0.68313949,33765.0,33759.0,1.29577346]
[1625536863175,0.6833222,33766.0,33760.0,0.69660301]
[1625536863279,0.6833222,33766.0,33760.0,1.02581301]
[1625536863477,0.68357793,33767.0,33761.0,0.69658716]
[1625536863574,0.68357793,33767.0,33761.0,0.75558716]
[1625536863675,0.68357793,33767.0,33761.0,0.81458716]
[1625536863877,1.19613324,33770.0,33761.0,0.81458716]
[1625536863975,0.68574187,33770.0,33762.0,0.69589838]
[1625536864075,0.68574187,33770.0,33769.0,0.72172632]
[1625536864179,0.18524187,33770.0,33769.0,1.14070632]
[1625536864576,1.54270498,33778.0,33769.0,1.14070632]
[1625536864577,1.20079454,33776.0,33769.0,1.14070632]
[1625536865076,1.20139309,33778.0,33769.0,1.14070632]
[1625536865576,1.19995011,33780.0,33769.0,1.14070632]
[1625536865928,1.61192251,33781.0,33769.0,1.14070632]
[1625536865929,0.24057544,33781.0,33769.0,1.14070632]
[1625536866027,0.24057544,33781.0,33780.0,0.48115088]
[1625536866128,0.24057544,33781.0,33780.0,0.74725088]
[1625536867430,0.58337331,33781.0,33780.0,0.74725088]
[1625536867734,0.34279787,33781.0,33780.0,0.74725088]
[1625536867834,0.34286998,33782.0,33780.0,0.74725088]
[1625536867932,0.34286998,33782.0,33780.0,0.80625088]
[1625536868032,0.34287397,33783.0,33780.0,1.04682632]
[1625536868386,0.3429997,33784.0,33780.0,1.04682632]
[1625536868835,0.34311372,33785.0,33780.0,1.04682632]
[1625536869236,0.925,33786.0,33780.0,1.04682632]
[1625536869636,1.26770175,33786.0,33780.0,1.04682632]
[1625536869936,0.925,33786.0,33780.0,1.04682632]
[1625536870087,0.925,33786.0,33785.0,0.48115088]
[1625536870189,0.925,33786.0,33785.0,0.59915088]
[1625536870789,0.925,33786.0,33785.0,0.54015088]
[1625536870940,1.26761496,33786.0,33785.0,0.54015088]
[1625536871141,1.32661496,33786.0,33785.0,0.54015088]
[1625536871239,1.32661496,33786.0,33785.0,0.48115088]
[1625536871341,1.041,33786.0,33785.0,0.48115088]
[1625536871441,1.041,33786.0,33785.0,0.54015088]
[1625536871539,1.041,33786.0,33785.0,0.48115088]
[1625536872097,1.28157544,33786.0,33785.0,0.48115088]
[1625536872995,1.28157544,33786.0,33785.0,0.54015088]
[1625536873095,1.28157544,33786.0,33785.0,0.48115088]
[1625536873500,1.28157544,33786.0,33785.0,0.24057544]
[1625536873601,1.28157544,33786.0,33780.0,0.24057544]
[1625536873697,1.56521544,33786.0,33780.0,0.24057544]
[1625536873799,1.56521544,33786.0,33780.0,0.29957544]
[1625536873900,1.56521544,33786.0,33780.0,0.24057544]
[1625536874000,0.3415255,33783.0,33780.0,0.24057544]
[1625536874101,0.24057544,33781.0,33780.0,0.24057544]
[1625536874199,0.24057544,33781.0,33780.0,0.29957544]
[1625536874750,0.29757544,33781.0,33780.0,0.29957544]
[1625536875304,0.29757544,33781.0,33780.0,0.24057544]
[1625536875555,0.29757544,33781.0,33780.0,0.29957544]
[1625536875755,0.29757544,33781.0,33780.0,0.24057544]
[1625536875956,0.35657544,33781.0,33780.0,0.24057544]
[1625536876056,0.35657544,33781.0,33778.0,0.24057544]
[1625536876160,0.93810713,33781.0,33778.0,0.29957544]
[1625536876258,0.93810713,33781.0,33778.0,0.24057544]
[1625536876558,0.3977552,33779.0,33778.0,0.24057544]
[1625536876657,0.6347452,33779.0,33778.0,0.24057544]
[1625536876759,0.6937452,33779.0,33778.0,0.24057544]
[1625536877061,0.35299,33779.0,33778.0,0.24057544]
[1625536878117,0.59356544,33779.0,33778.0,0.24057544]
[1625536878216,0.59356544,33779.0,33774.0,0.24057544]
[1625536878720,0.34037581,33776.0,33774.0,0.24057544]
[1625536878816,0.057,33775.0,33774.0,0.24057544]
[1625536880117,0.29757544,33775.0,33774.0,0.24057544]
[1625536880568,0.29757544,33775.0,33774.0,0.24408398]
[1625536881071,0.29757544,33775.0,33774.0,0.30308398]
[1625536881273,0.24057544,33775.0,33774.0,0.30308398]
[1625536881675,0.057,33776.0,33774.0,0.30308398]
[1625536881827,0.057,33776.0,33774.0,0.62109398]
[1625536882227,0.057,33776.0,33775.0,0.00350846]
[1625536882328,0.057,33776.0,33775.0,0.06250846]
[1625536882678,0.58123094,33779.0,33775.0,0.06250846]
[1625536882780,0.69723094,33779.0,33775.0,0.06250846]
[1625536883030,0.69723094,33779.0,33776.0,0.00350846]
[1625536883128,0.69723094,33779.0,33776.0,0.06250846]
[1625536883431,0.35657544,33779.0,33776.0,0.06250846]
[1625536883532,0.35657544,33779.0,33777.0,0.00350838]
[1625536883630,0.35657544,33779.0,33777.0,0.06250838]
[1625536884080,0.35657544,33779.0,33778.0,0.0035084]
[1625536884182,0.35657544,33779.0,33778.0,0.30308384]
[1625536884280,0.6973071,33779.0,33778.0,0.24408384]
[1625536884732,0.35657544,33779.0,33778.0,0.24408384]
[1625536887192,0.35657544,33779.0,33778.0,0.30308384]
[1625536887292,0.35657544,33779.0,33778.0,0.24408384]
[1625536887440,0.69736138,33779.0,33778.0,0.24408384]
[1625536887992,0.35657544,33779.0,33778.0,0.24408384]
[1625536888242,0.29757544,33779.0,33778.0,0.24408384]
[1625536888343,0.29757544,33779.0,33778.0,0.36208384]
[1625536888440,0.24057544,33779.0,33778.0,0.36208384]
[1625536888641,0.24057544,33779.0,33778.0,0.30308384]
[1625536888741,0.24057544,33779.0,33778.0,0.36208384]
[1625536888944,0.24057544,33779.0,33778.0,0.37085323]